[Event "*** SCC Grand Prix: Titled Tuesday Blitz"]
[Site "Chess.com"]
[Date "2020.06.09"]
[Round "2"]
[White "GaboSalazar2001"]
[Black "yamalchess"]
[Result "1-0"]
[WhiteElo "2249"]
[BlackElo "2437"]
[TimeControl "180+1"]
[EndTime "9:19:59 PDT"]
[Termination "GaboSalazar2001 won on time"]

1. e4 {[%clk 0:03:00.9]} 1... e5 {[%clk 0:02:59.3]} 2. Nf3 {[%clk 0:03:01.3]}
2... Nc6 {[%clk 0:02:59.3]} 3. Bb5 {[%clk 0:03:00.2]} 3... a6 {[%clk 0:02:59.4]}
4. Ba4 {[%clk 0:03:00.2]} 4... Nf6 {[%clk 0:02:59.8]} 5. d3 {[%clk 0:03:00.4]}
5... b5 {[%clk 0:03:00.3]} 6. Bb3 {[%clk 0:03:00.5]} 6... Bc5 {[%clk 0:03:00.4]}
7. Nc3 {[%clk 0:02:58.6]} 7... O-O {[%clk 0:02:58]} 8. O-O {[%clk 0:02:47.4]}
8... h6 {[%clk 0:02:55.8]} 9. Nd5 {[%clk 0:02:34.6]} 9... Re8 {[%clk 0:02:47.4]}
10. c3 {[%clk 0:02:33.5]} 10... d6 {[%clk 0:02:36.1]} 11. Nxf6+ {[%clk
0:02:29.1]} 11... Qxf6 {[%clk 0:02:35.5]} 12. Bd5 {[%clk 0:02:30]} 12... Bb7
{[%clk 0:02:34.9]} 13. a4 {[%clk 0:02:21.5]} 13... Bb6 {[%clk 0:02:34.2]} 14.
axb5 {[%clk 0:02:16.3]} 14... axb5 {[%clk 0:02:33.9]} 15. Rxa8 {[%clk
0:02:17.2]} 15... Bxa8 {[%clk 0:02:30.9]} 16. Qb3 {[%clk 0:02:16.6]} 16... Na7
{[%clk 0:02:28.8]} 17. Be3 {[%clk 0:02:09.1]} 17... Bxd5 {[%clk 0:02:16.9]} 18.
Qxd5 {[%clk 0:02:08.8]} 18... c6 {[%clk 0:02:16.7]} 19. Qa2 {[%clk 0:02:03.8]}
19... Qd8 {[%clk 0:02:07.7]} 20. Qa6 {[%clk 0:01:55.4]} 20... Nc8 {[%clk
0:02:05.4]} 21. Qb7 {[%clk 0:01:47.4]} 21... Qc7 {[%clk 0:02:00.1]} 22. Qxc7
{[%clk 0:01:38.9]} 22... Bxc7 {[%clk 0:01:59.2]} 23. Ra1 {[%clk 0:01:39.5]}
23... Bb6 {[%clk 0:01:57.3]} 24. Bxb6 {[%clk 0:01:30.2]} 24... Nxb6 {[%clk
0:01:56.7]} 25. Ra6 {[%clk 0:01:30.8]} 25... Rb8 {[%clk 0:01:56.3]} 26. Kf1
{[%clk 0:01:30.6]} 26... Kf8 {[%clk 0:01:55.5]} 27. d4 {[%clk 0:01:23.2]} 27...
f6 {[%clk 0:01:34]} 28. Ke2 {[%clk 0:01:23]} 28... Rb7 {[%clk 0:01:32.8]} 29.
Kd3 {[%clk 0:01:14.4]} 29... Ke7 {[%clk 0:01:32.7]} 30. b3 {[%clk 0:01:14.8]}
30... Kd7 {[%clk 0:01:32.1]} 31. Nh4 {[%clk 0:01:07.5]} 31... Ke6 {[%clk
0:01:19.8]} 32. Nf5 {[%clk 0:01:04.9]} 32... h5 {[%clk 0:01:18.1]} 33. g3 {[%clk
0:01:02]} 33... g6 {[%clk 0:01:15.4]} 34. Nh4 {[%clk 0:00:58.2]} 34... Kf7
{[%clk 0:01:03.4]} 35. f4 {[%clk 0:00:51.9]} 35... c5 {[%clk 0:01:00.5]} 36. d5
{[%clk 0:00:36.9]} 36... c4+ {[%clk 0:00:52.5]} 37. bxc4 {[%clk 0:00:36.8]}
37... Nxc4 {[%clk 0:00:51]} 38. Ng2 {[%clk 0:00:29.3]} 38... Ke7 {[%clk
0:00:37.4]} 39. Ne3 {[%clk 0:00:28.4]} 39... Nxe3 {[%clk 0:00:35.4]} 40. Kxe3
{[%clk 0:00:29.3]} 40... b4 {[%clk 0:00:35.7]} 41. cxb4 {[%clk 0:00:26]} 41...
Rxb4 {[%clk 0:00:35.6]} 42. Ra7+ {[%clk 0:00:26.4]} 42... Ke8 {[%clk 0:00:33.3]}
43. fxe5 {[%clk 0:00:24.7]} 43... fxe5 {[%clk 0:00:32.2]} 44. Rg7 {[%clk
0:00:24.5]} 44... Rb3+ {[%clk 0:00:32.3]} 45. Kf2 {[%clk 0:00:23.9]} 45... Rb2+
{[%clk 0:00:31.5]} 46. Kf3 {[%clk 0:00:24.2]} 46... Rb3+ {[%clk 0:00:30.8]} 47.
Kg2 {[%clk 0:00:24.4]} 47... Rb2+ {[%clk 0:00:30.2]} 48. Kh3 {[%clk 0:00:24.8]}
48... Re2 {[%clk 0:00:30]} 49. Rxg6 {[%clk 0:00:25]} 49... Kd7 {[%clk
0:00:28.7]} 50. Rg7+ {[%clk 0:00:22.4]} 50... Ke8 {[%clk 0:00:28.1]} 51. Rg6
{[%clk 0:00:18.5]} 51... Kd7 {[%clk 0:00:26.3]} 52. Rg7+ {[%clk 0:00:18.1]}
52... Ke8 {[%clk 0:00:26.3]} 53. Kh4 {[%clk 0:00:17.9]} 53... Rxh2+ {[%clk
0:00:23.5]} 54. Kg5 {[%clk 0:00:17.8]} 54... Re2 {[%clk 0:00:18.8]} 55. Kf5
{[%clk 0:00:18.1]} 55... Kf8 {[%clk 0:00:18.9]} 56. Rh7 {[%clk 0:00:17.1]} 56...
Rg2 {[%clk 0:00:16.6]} 57. Kf6 {[%clk 0:00:15.8]} 57... Kg8 {[%clk 0:00:15.7]}
58. Rxh5 {[%clk 0:00:15.6]} 58... Rxg3 {[%clk 0:00:15.7]} 59. Ke6 {[%clk
0:00:08.6]} 59... Rg6+ {[%clk 0:00:15.1]} 60. Kd7 {[%clk 0:00:08.9]} 60... Kg7
{[%clk 0:00:12]} 61. Rf5 {[%clk 0:00:09.1]} 61... Rh6 {[%clk 0:00:08.1]} 62. Kc6
{[%clk 0:00:08.7]} 62... Rg6 {[%clk 0:00:07]} 63. Rf1 {[%clk 0:00:08.5]} 63...
Rh6 {[%clk 0:00:03.6]} 64. Kd7 {[%clk 0:00:08.9]} 64... Rg6 {[%clk 0:00:03]} 65.
Rc1 {[%clk 0:00:08.9]} 65... Kh6 {[%clk 0:00:02.2]} 66. Rc6 {[%clk 0:00:08.9]}
66... Kg5 {[%clk 0:00:02.3]} 67. Rxd6 {[%clk 0:00:08.9]} 67... Rg7+ {[%clk
0:00:02.3]} 68. Ke6 {[%clk 0:00:08.9]} 68... Kf4 {[%clk 0:00:02.5]} 69. Rd7
{[%clk 0:00:06.8]} 69... Rg6+ {[%clk 0:00:01.3]} 70. Kf7 {[%clk 0:00:06]} 1-0

[Event "*** SCC Grand Prix: Titled Tuesday Blitz"]
[Site "Chess.com"]
[Date "2020.06.09"]
[Round "2"]
[White "TigranMukhutdinov"]
[Black "tylityli"]
[Result "1-0"]
[WhiteElo "2475"]
[BlackElo "2280"]
[TimeControl "180+1"]
[EndTime "9:20:02 PDT"]
[Termination "TigranMukhutdinov won on time"]

1. Nf3 {[%clk 0:03:00.9]} 1... Nc6 {[%clk 0:02:53.9]} 2. d4 {[%clk 0:03:00.3]}
2... d5 {[%clk 0:02:53.6]} 3. e3 {[%clk 0:03:00.4]} 3... Bg4 {[%clk 0:02:53.5]}
4. h3 {[%clk 0:02:58.1]} 4... Bxf3 {[%clk 0:02:51.6]} 5. Qxf3 {[%clk 0:02:59]}
5... e5 {[%clk 0:02:51.2]} 6. Bb5 {[%clk 0:02:56]} 6... exd4 {[%clk 0:02:44.5]}
7. exd4 {[%clk 0:02:55.1]} 7... a6 {[%clk 0:02:43.8]} 8. Bxc6+ {[%clk
0:02:47.5]} 8... bxc6 {[%clk 0:02:42.9]} 9. O-O {[%clk 0:02:48.4]} 9... Nf6
{[%clk 0:02:34.8]} 10. Re1+ {[%clk 0:02:45.2]} 10... Be7 {[%clk 0:02:34.3]} 11.
Qe2 {[%clk 0:02:44.3]} 11... Qd7 {[%clk 0:02:29.1]} 12. Bd2 {[%clk 0:02:12.5]}
12... Kf8 {[%clk 0:02:28.3]} 13. Nc3 {[%clk 0:02:05.1]} 13... a5 {[%clk
0:02:24.7]} 14. Qf3 {[%clk 0:02:02.6]} 14... h6 {[%clk 0:02:14.5]} 15. Na4
{[%clk 0:02:01.1]} 15... g5 {[%clk 0:01:56.8]} 16. Nc5 {[%clk 0:01:59.5]} 16...
Qd6 {[%clk 0:01:56.9]} 17. b4 {[%clk 0:01:51.4]} 17... Kg7 {[%clk 0:01:42]} 18.
bxa5 {[%clk 0:01:48.8]} 18... Rhe8 {[%clk 0:01:38.9]} 19. Bb4 {[%clk 0:01:44.8]}
19... Rab8 {[%clk 0:01:27.6]} 20. a3 {[%clk 0:01:44.1]} 20... Qd8 {[%clk
0:01:25]} 21. a6 {[%clk 0:01:41]} 21... Ra8 {[%clk 0:01:22.6]} 22. Qf5 {[%clk
0:01:12.1]} 22... Bxc5 {[%clk 0:01:17.5]} 23. Bxc5 {[%clk 0:01:12.2]} 23... Rxa6
{[%clk 0:01:15.5]} 24. f3 {[%clk 0:01:12.4]} 24... Ra8 {[%clk 0:01:01.9]} 25.
Re5 {[%clk 0:01:12.1]} 25... Qd7 {[%clk 0:00:59.3]} 26. Qd3 {[%clk 0:01:07.4]}
26... Re6 {[%clk 0:00:53.8]} 27. a4 {[%clk 0:01:05.7]} 27... Qc8 {[%clk
0:00:46.9]} 28. a5 {[%clk 0:01:03.2]} 28... Nd7 {[%clk 0:00:45.1]} 29. Rxe6
{[%clk 0:00:53.6]} 29... Nxc5 {[%clk 0:00:44]} 30. dxc5 {[%clk 0:00:51]} 30...
Qxe6 {[%clk 0:00:43.3]} 31. a6 {[%clk 0:00:50.4]} 31... Qe5 {[%clk 0:00:42.4]}
32. Ra4 {[%clk 0:00:46.4]} 32... Qb2 {[%clk 0:00:38.7]} 33. h4 {[%clk
0:00:43.1]} 33... Qb5 {[%clk 0:00:36.4]} 34. Qd4+ {[%clk 0:00:40.8]} 34... Kg6
{[%clk 0:00:34.8]} 35. hxg5 {[%clk 0:00:40.7]} 35... hxg5 {[%clk 0:00:34.2]} 36.
a7 {[%clk 0:00:39.9]} 36... Qb1+ {[%clk 0:00:31.1]} 37. Kh2 {[%clk 0:00:38.3]}
37... Qxc2 {[%clk 0:00:27.6]} 38. Ra6 {[%clk 0:00:37.2]} 38... f6 {[%clk
0:00:24.2]} 39. Rxc6 {[%clk 0:00:34.2]} 39... Rh8+ {[%clk 0:00:22.2]} 40. Kg3
{[%clk 0:00:34.5]} 40... Qf5 {[%clk 0:00:20.2]} 41. Ra6 {[%clk 0:00:27.9]} 41...
Ra8 {[%clk 0:00:18.4]} 42. c6 {[%clk 0:00:24.1]} 42... Kf7 {[%clk 0:00:17.3]}
43. Ra5 {[%clk 0:00:23.2]} 43... Ke6 {[%clk 0:00:16.1]} 44. Qe3+ {[%clk
0:00:23.2]} 44... Qe5+ {[%clk 0:00:16]} 45. Qxe5+ {[%clk 0:00:22.8]} 45... Kxe5
{[%clk 0:00:16.2]} 46. Kg4 {[%clk 0:00:22.7]} 46... Kd6 {[%clk 0:00:14.8]} 47.
Ra6 {[%clk 0:00:23]} 47... d4 {[%clk 0:00:14.4]} 48. Kf5 {[%clk 0:00:22.7]}
48... d3 {[%clk 0:00:14.4]} 49. Ra3 {[%clk 0:00:21]} 49... Kxc6 {[%clk
0:00:12.4]} 50. Rc3+ {[%clk 0:00:20.7]} 50... Kb7 {[%clk 0:00:11.7]} 51. Rxd3
{[%clk 0:00:21.1]} 51... Rxa7 {[%clk 0:00:11.6]} 52. Kxf6 {[%clk 0:00:21.6]}
52... Ra5 {[%clk 0:00:11.6]} 53. g4 {[%clk 0:00:20.2]} 53... c5 {[%clk
0:00:11.1]} 54. Rc3 {[%clk 0:00:18.7]} 54... Kb6 {[%clk 0:00:10.2]} 55. Kxg5
{[%clk 0:00:19.1]} 55... c4+ {[%clk 0:00:10.5]} 56. Kf6 {[%clk 0:00:19.5]} 56...
Kc5 {[%clk 0:00:10.9]} 57. f4 {[%clk 0:00:19.9]} 57... Kd4 {[%clk 0:00:11.5]}
58. Rc1 {[%clk 0:00:19.6]} 58... Ra6+ {[%clk 0:00:11.9]} 59. Kg7 {[%clk
0:00:18.8]} 59... Ra7+ {[%clk 0:00:12.4]} 60. Kh6 {[%clk 0:00:18.8]} 60... Ra6+
{[%clk 0:00:12.5]} 61. Kh5 {[%clk 0:00:19.3]} 61... c3 {[%clk 0:00:09.6]} 62. f5
{[%clk 0:00:19.7]} 62... Kd3 {[%clk 0:00:08.1]} 63. g5 {[%clk 0:00:20.1]} 63...
Kd2 {[%clk 0:00:08.6]} 64. Rg1 {[%clk 0:00:19.8]} 64... c2 {[%clk 0:00:08.6]}
65. f6 {[%clk 0:00:19.4]} 65... Re6 {[%clk 0:00:08.1]} 66. Rg2+ {[%clk
0:00:19.4]} 66... Re2 {[%clk 0:00:07.8]} 67. Rxe2+ {[%clk 0:00:18.4]} 67... Kxe2
{[%clk 0:00:07.7]} 68. f7 {[%clk 0:00:19.3]} 68... c1=Q {[%clk 0:00:07.6]} 69.
f8=Q {[%clk 0:00:20.2]} 69... Qh1+ {[%clk 0:00:07.4]} 70. Kg6 {[%clk 0:00:20.5]}
70... Qc6+ {[%clk 0:00:07.3]} 71. Qf6 {[%clk 0:00:20.8]} 71... Qe4+ {[%clk
0:00:06.7]} 72. Kg7 {[%clk 0:00:20.8]} 72... Qb7+ {[%clk 0:00:05.8]} 73. Qf7
{[%clk 0:00:21.1]} 73... Qb2+ {[%clk 0:00:05.5]} 74. Kh7 {[%clk 0:00:21.2]}
74... Qc2+ {[%clk 0:00:04.8]} 75. g6 {[%clk 0:00:21.7]} 75... Qe4 {[%clk
0:00:02.9]} 76. Kg8 {[%clk 0:00:21.3]} 1-0

[Event "*** SCC Grand Prix: Titled Tuesday Blitz"]
[Site "Chess.com"]
[Date "2020.06.09"]
[Round "2"]
[White "Evgeny_Ermakov1965"]
[Black "VladimirBelous"]
[Result "1/2-1/2"]
[WhiteElo "2488"]
[BlackElo "2715"]
[TimeControl "180+1"]
[EndTime "9:20:11 PDT"]
[Termination "Game drawn - insufficient material"]

1. d4 {[%clk 0:03:00.9]} 1... Nf6 {[%clk 0:02:59.4]} 2. c3 {[%clk 0:03:00.3]}
2... g6 {[%clk 0:02:59.4]} 3. Bf4 {[%clk 0:02:58.7]} 3... Bg7 {[%clk 0:02:59.7]}
4. e3 {[%clk 0:02:58.3]} 4... d6 {[%clk 0:02:57.6]} 5. h3 {[%clk 0:02:58.1]}
5... Nc6 {[%clk 0:02:56.4]} 6. Nd2 {[%clk 0:02:58.1]} 6... e5 {[%clk 0:02:55.9]}
7. Bh2 {[%clk 0:02:55.7]} 7... Qe7 {[%clk 0:02:54.9]} 8. Bb5 {[%clk 0:02:50.8]}
8... exd4 {[%clk 0:02:55]} 9. cxd4 {[%clk 0:02:48.3]} 9... O-O {[%clk
0:02:43.8]} 10. Bxc6 {[%clk 0:02:45.9]} 10... bxc6 {[%clk 0:02:44.7]} 11. Ngf3
{[%clk 0:02:45.2]} 11... Ba6 {[%clk 0:02:44.4]} 12. Rc1 {[%clk 0:02:38.6]} 12...
Nd5 {[%clk 0:02:36.9]} 13. Nc4 {[%clk 0:02:36.6]} 13... Nb4 {[%clk 0:02:02.7]}
14. a3 {[%clk 0:02:32.2]} 14... Qe6 {[%clk 0:01:54]} 15. b3 {[%clk 0:02:04.9]}
15... Nd5 {[%clk 0:01:42.6]} 16. O-O {[%clk 0:02:03.5]} 16... Rab8 {[%clk
0:01:41.2]} 17. Re1 {[%clk 0:01:59.8]} 17... Rfd8 {[%clk 0:01:28.2]} 18. e4
{[%clk 0:01:59.6]} 18... Ne7 {[%clk 0:01:25.6]} 19. d5 {[%clk 0:01:53.2]} 19...
cxd5 {[%clk 0:01:08.9]} 20. exd5 {[%clk 0:01:54.1]} 20... Qd7 {[%clk 0:01:04.9]}
21. Qd2 {[%clk 0:01:45.7]} 21... Re8 {[%clk 0:01:03.9]} 22. b4 {[%clk
0:01:40.7]} 22... Qb5 {[%clk 0:01:00.6]} 23. Na5 {[%clk 0:01:36.8]} 23... Nxd5
{[%clk 0:00:54.8]} 24. Rxe8+ {[%clk 0:01:31.1]} 24... Rxe8 {[%clk 0:00:55.7]}
25. Nd4 {[%clk 0:01:31.2]} 25... Qd3 {[%clk 0:00:44.4]} 26. Qxd3 {[%clk
0:01:28.7]} 26... Bxd3 {[%clk 0:00:45.3]} 27. Nac6 {[%clk 0:01:29.2]} 27... Re4
{[%clk 0:00:39.6]} 28. Nf3 {[%clk 0:01:25.5]} 28... Bb2 {[%clk 0:00:39.2]} 29.
Rd1 {[%clk 0:01:23.2]} 29... Bc4 {[%clk 0:00:37.8]} 30. Nd2 {[%clk 0:01:21.5]}
30... Be2 {[%clk 0:00:34.9]} 31. Rb1 {[%clk 0:01:18.3]} 31... Bd3 {[%clk
0:00:34.8]} 32. f3 {[%clk 0:00:58.8]} 32... Bd4+ {[%clk 0:00:20.9]} 33. Nxd4
{[%clk 0:00:58.1]} 33... Rxd4 {[%clk 0:00:21.8]} 34. Rc1 {[%clk 0:00:54.8]}
34... Bb5 {[%clk 0:00:21.6]} 35. Ne4 {[%clk 0:00:52.1]} 35... Kg7 {[%clk
0:00:21.2]} 36. Bg3 {[%clk 0:00:49.2]} 36... Rd3 {[%clk 0:00:21.5]} 37. Be1
{[%clk 0:00:47.5]} 37... Rxa3 {[%clk 0:00:21.2]} 38. Nc3 {[%clk 0:00:45.2]}
38... Nxc3 {[%clk 0:00:20.8]} 39. Bxc3+ {[%clk 0:00:43.8]} 39... f6 {[%clk
0:00:21.2]} 40. Bb2 {[%clk 0:00:41.8]} 40... Rb3 {[%clk 0:00:21.6]} 41. Rxc7+
{[%clk 0:00:41.2]} 41... Kh6 {[%clk 0:00:22.3]} 42. Bxf6 {[%clk 0:00:40.2]}
42... a6 {[%clk 0:00:22.6]} 43. g4 {[%clk 0:00:36.7]} 43... g5 {[%clk
0:00:22.5]} 44. h4 {[%clk 0:00:36.7]} 44... gxh4 {[%clk 0:00:22.6]} 45. g5+
{[%clk 0:00:33.5]} 45... Kg6 {[%clk 0:00:22.5]} 46. Rg7+ {[%clk 0:00:33.6]}
46... Kf5 {[%clk 0:00:22.5]} 47. Rxh7 {[%clk 0:00:33.1]} 47... Rxb4 {[%clk
0:00:23]} 48. Rf7 {[%clk 0:00:30.3]} 48... Kg6 {[%clk 0:00:22.9]} 49. Rg7+
{[%clk 0:00:28.9]} 49... Kf5 {[%clk 0:00:23.4]} 50. Rf7 {[%clk 0:00:29]} 50...
Bc4 {[%clk 0:00:23.8]} 51. Rf8 {[%clk 0:00:22]} 51... Kg6 {[%clk 0:00:24.3]} 52.
Bd8 {[%clk 0:00:20.6]} 52... Rb2 {[%clk 0:00:20.8]} 53. Rf6+ {[%clk 0:00:18.2]}
53... Kxg5 {[%clk 0:00:20.7]} 54. Rxd6+ {[%clk 0:00:17.6]} 54... Kf5 {[%clk
0:00:20.2]} 55. Rf6+ {[%clk 0:00:17.2]} 55... Ke5 {[%clk 0:00:20.3]} 56. Rh6
{[%clk 0:00:15.7]} 56... Rd2 {[%clk 0:00:17.6]} 57. Rxh4 {[%clk 0:00:15]} 57...
Bd5 {[%clk 0:00:16.3]} 58. Bc7+ {[%clk 0:00:12.3]} 58... Kf5 {[%clk 0:00:15.8]}
59. Rh6 {[%clk 0:00:11.9]} 59... Rc2 {[%clk 0:00:13.1]} 60. Rh5+ {[%clk
0:00:10.5]} 60... Ke6 {[%clk 0:00:12.9]} 61. Re5+ {[%clk 0:00:10.4]} 61... Kd7
{[%clk 0:00:12.4]} 62. Rxd5+ {[%clk 0:00:10.4]} 62... Kxc7 {[%clk 0:00:12.9]}
63. f4 {[%clk 0:00:10.6]} 63... Rc4 {[%clk 0:00:11.8]} 64. f5 {[%clk 0:00:08.9]}
64... Kc6 {[%clk 0:00:11]} 65. Re5 {[%clk 0:00:08.9]} 65... Rc5 {[%clk
0:00:09.6]} 66. Re6+ {[%clk 0:00:08.8]} 66... Kb5 {[%clk 0:00:10.1]} 67. f6
{[%clk 0:00:08.2]} 67... a5 {[%clk 0:00:10.7]} 68. f7 {[%clk 0:00:05.5]} 68...
Rf5 {[%clk 0:00:10.5]} 69. Re7 {[%clk 0:00:05.5]} 69... a4 {[%clk 0:00:11]} 70.
Kg2 {[%clk 0:00:04.8]} 70... a3 {[%clk 0:00:11]} 71. Ra7 {[%clk 0:00:04.4]}
71... Kb4 {[%clk 0:00:10.7]} 72. Kg3 {[%clk 0:00:04.8]} 72... Kb3 {[%clk
0:00:10.6]} 73. Kg4 {[%clk 0:00:04.8]} 73... Rf1 {[%clk 0:00:11.1]} 74. Kg5
{[%clk 0:00:04.7]} 74... a2 {[%clk 0:00:11.8]} 75. Kg6 {[%clk 0:00:04.5]} 75...
Kb2 {[%clk 0:00:11]} 76. Kg7 {[%clk 0:00:04.5]} 76... a1=Q {[%clk 0:00:10.2]}
77. Rxa1 {[%clk 0:00:04]} 77... Kxa1 {[%clk 0:00:11.1]} 78. f8=Q {[%clk
0:00:04.5]} 78... Rxf8 {[%clk 0:00:11.9]} 79. Kxf8 {[%clk 0:00:05.3]} 1/2-1/2

[Event "*** SCC Grand Prix: Titled Tuesday Blitz"]
[Site "Chess.com"]
[Date "2020.06.09"]
[Round "2"]
[White "Natalya_Buksa"]
[Black "Funo09"]
[Result "1/2-1/2"]
[WhiteElo "2566"]
[BlackElo "2809"]
[TimeControl "180+1"]
[EndTime "9:20:19 PDT"]
[Termination "Game drawn - insufficient material"]

1. d4 {[%clk 0:03:00.9]} 1... Nf6 {[%clk 0:03:00.5]} 2. Nc3 {[%clk 0:03:01.2]}
2... d5 {[%clk 0:03:00.2]} 3. Bf4 {[%clk 0:03:01.6]} 3... g6 {[%clk 0:02:59.6]}
4. e3 {[%clk 0:03:01.7]} 4... Bg7 {[%clk 0:02:59.4]} 5. h4 {[%clk 0:03:02.2]}
5... c5 {[%clk 0:02:57.9]} 6. Nf3 {[%clk 0:03:00.7]} 6... Nc6 {[%clk 0:02:57.6]}
7. Ne5 {[%clk 0:02:55.8]} 7... Qb6 {[%clk 0:02:49.4]} 8. Na4 {[%clk 0:02:25.9]}
8... Qa5+ {[%clk 0:02:48]} 9. c3 {[%clk 0:02:26.4]} 9... cxd4 {[%clk 0:02:48.5]}
10. exd4 {[%clk 0:02:24.7]} 10... Bd7 {[%clk 0:02:40.8]} 11. Nc5 {[%clk
0:02:21.9]} 11... Nh5 {[%clk 0:01:54.8]} 12. Ncxd7 {[%clk 0:01:46.3]} 12... Nxf4
{[%clk 0:01:54]} 13. Qf3 {[%clk 0:01:45.6]} 13... Nxe5 {[%clk 0:01:22.9]} 14.
Nxe5 {[%clk 0:01:42.6]} 14... Bxe5 {[%clk 0:01:22.5]} 15. dxe5 {[%clk
0:01:42.7]} 15... Ne6 {[%clk 0:01:22.3]} 16. O-O-O {[%clk 0:01:16.1]} 16... Qxa2
{[%clk 0:00:46.8]} 17. Bb5+ {[%clk 0:01:15]} 17... Kf8 {[%clk 0:00:44.9]} 18.
Qxd5 {[%clk 0:01:15.3]} 18... Qxd5 {[%clk 0:00:27.6]} 19. Rxd5 {[%clk
0:01:14.8]} 19... b6 {[%clk 0:00:22.2]} 20. Rhd1 {[%clk 0:01:10.3]} 20... Nc7
{[%clk 0:00:22.1]} 21. Rd8+ {[%clk 0:01:07.2]} 21... Rxd8 {[%clk 0:00:22.2]} 22.
Rxd8+ {[%clk 0:01:07.6]} 22... Kg7 {[%clk 0:00:23.1]} 23. Rxh8 {[%clk
0:01:04.6]} 23... Kxh8 {[%clk 0:00:24]} 24. Bc4 {[%clk 0:01:04.8]} 24... Kg7
{[%clk 0:00:23.8]} 25. Kd2 {[%clk 0:01:04.4]} 25... f6 {[%clk 0:00:24.1]} 26. f4
{[%clk 0:00:58.4]} 26... fxe5 {[%clk 0:00:22.2]} 27. fxe5 {[%clk 0:00:58.7]}
27... h6 {[%clk 0:00:21.4]} 28. Ke3 {[%clk 0:00:58.4]} 28... g5 {[%clk
0:00:21.6]} 29. hxg5 {[%clk 0:00:45.2]} 29... hxg5 {[%clk 0:00:22.5]} 30. g3
{[%clk 0:00:29.4]} 30... Kg6 {[%clk 0:00:21.6]} 31. Bd3+ {[%clk 0:00:29.4]}
31... Kf7 {[%clk 0:00:21.6]} 32. Bc4+ {[%clk 0:00:28.4]} 32... Kg6 {[%clk
0:00:20.5]} 33. Bd3+ {[%clk 0:00:28.6]} 33... Kf7 {[%clk 0:00:20.9]} 34. Bf5
{[%clk 0:00:22.4]} 34... e6 {[%clk 0:00:20.2]} 35. Be4 {[%clk 0:00:22.5]} 35...
Na6 {[%clk 0:00:19.4]} 36. Kf3 {[%clk 0:00:22]} 36... Nc5 {[%clk 0:00:19.6]} 37.
Bc2 {[%clk 0:00:22.3]} 37... Kg7 {[%clk 0:00:19.1]} 38. Ke3 {[%clk 0:00:21]}
38... Nd7 {[%clk 0:00:19.2]} 39. Kd4 {[%clk 0:00:20.4]} 39... Kh6 {[%clk
0:00:19.4]} 40. Bd3 {[%clk 0:00:18.7]} 40... Kh5 {[%clk 0:00:19.2]} 41. Be2+
{[%clk 0:00:19]} 41... Kg6 {[%clk 0:00:20.1]} 42. Bd3+ {[%clk 0:00:19]} 42...
Kf7 {[%clk 0:00:20.5]} 43. b4 {[%clk 0:00:17.6]} 43... Ke7 {[%clk 0:00:20.4]}
44. Bb5 {[%clk 0:00:16.9]} 44... Nb8 {[%clk 0:00:20.2]} 45. Ke4 {[%clk
0:00:15.9]} 45... a6 {[%clk 0:00:20.4]} 46. Ba4 {[%clk 0:00:14.6]} 46... a5
{[%clk 0:00:18.5]} 47. bxa5 {[%clk 0:00:13.7]} 47... bxa5 {[%clk 0:00:19.4]} 48.
Bb5 {[%clk 0:00:14.1]} 48... Kd8 {[%clk 0:00:18.9]} 49. Kf3 {[%clk 0:00:12.4]}
49... Nd7 {[%clk 0:00:17.5]} 50. Ke4 {[%clk 0:00:12.3]} 50... a4 {[%clk
0:00:15.4]} 51. Kd4 {[%clk 0:00:10.8]} 51... a3 {[%clk 0:00:15.2]} 52. Bc4
{[%clk 0:00:11.3]} 52... Ke7 {[%clk 0:00:16]} 53. Ba2 {[%clk 0:00:11.5]} 53...
Kf7 {[%clk 0:00:16]} 54. Bb1 {[%clk 0:00:08.1]} 54... Nb6 {[%clk 0:00:14.8]} 55.
Ba2 {[%clk 0:00:07.7]} 55... Nd5 {[%clk 0:00:14.3]} 56. Kc4 {[%clk 0:00:04.8]}
56... Kg6 {[%clk 0:00:11.5]} 57. Kb3 {[%clk 0:00:04.2]} 57... Kf5 {[%clk
0:00:11.6]} 58. c4 {[%clk 0:00:04.3]} 58... Ne3 {[%clk 0:00:08.5]} 59. Kxa3
{[%clk 0:00:04.8]} 59... Kxe5 {[%clk 0:00:09.4]} 60. Kb4 {[%clk 0:00:04.7]}
60... Nc2+ {[%clk 0:00:08.7]} 61. Kb5 {[%clk 0:00:04.6]} 61... Nd4+ {[%clk
0:00:09]} 62. Kb6 {[%clk 0:00:04.8]} 62... Ke4 {[%clk 0:00:07.9]} 63. c5 {[%clk
0:00:05.2]} 63... e5 {[%clk 0:00:05.7]} 64. c6 {[%clk 0:00:05.7]} 64... Nf5
{[%clk 0:00:04.7]} 65. c7 {[%clk 0:00:05.3]} 65... Ne7 {[%clk 0:00:04.9]} 66.
Kc5 {[%clk 0:00:04.9]} 66... Kf3 {[%clk 0:00:05.3]} 67. Kd6 {[%clk 0:00:05.1]}
67... Nc8+ {[%clk 0:00:06]} 68. Kxe5 {[%clk 0:00:05.5]} 68... Kxg3 {[%clk
0:00:06.2]} 69. Be6 {[%clk 0:00:05.9]} 69... Na7 {[%clk 0:00:06]} 70. Kd6 {[%clk
0:00:05.2]} 70... g4 {[%clk 0:00:06.2]} 71. Kc5 {[%clk 0:00:05.7]} 71... Kf4
{[%clk 0:00:06.1]} 72. Kb6 {[%clk 0:00:06.2]} 72... g3 {[%clk 0:00:06.6]} 73.
Bh3 {[%clk 0:00:04.9]} 73... Nc8+ {[%clk 0:00:06.5]} 74. Bxc8 {[%clk 0:00:02.8]}
74... g2 {[%clk 0:00:06.4]} 75. Ka7 {[%clk 0:00:03]} 75... g1=Q+ {[%clk
0:00:07.3]} 76. Kb8 {[%clk 0:00:03.4]} 76... Qb6+ {[%clk 0:00:06.2]} 77. Bb7
{[%clk 0:00:03.7]} 77... Ke5 {[%clk 0:00:06.6]} 78. c8=Q {[%clk 0:00:03.6]}
78... Qd6+ {[%clk 0:00:06.2]} 79. Ka8 {[%clk 0:00:02.9]} 79... Qa3+ {[%clk
0:00:06]} 80. Ba6 {[%clk 0:00:03.4]} 80... Qd6 {[%clk 0:00:06.9]} 81. Qb8 {[%clk
0:00:03.7]} 81... Qxb8+ {[%clk 0:00:06.6]} 82. Kxb8 {[%clk 0:00:04.6]} 1/2-1/2